bitfinex/quotes_SOLUSD_20240622
["timestamp","ask_amount","ask_price","bid_price","bid_amount"]
[1719075626523,8.3009833,134.93,134.9,30.0]
[1719075626735,0.8669833,134.93,134.91,14.242]
[1719075626956,0.8669833,134.93,134.91,44.242]
[1719075627269,0.8669833,134.93,134.92,13.9017]
[1719075627431,0.8669833,134.93,134.92,114.2417]
[1719075627752,7.405,135.05,134.97,7.4088]
[1719075627955,13.924,135.02,134.97,37.4088]
[1719075628171,7.434,135.02,134.97,37.4088]
[1719075628469,6.49,135.02,134.98,0.34]
[1719075628770,0.8669833,135.06,134.98,106.83]
[1719075629059,8.2710833,135.06,134.98,144.2381]
[1719075629227,0.8669833,135.06,135.0,100.0]
[1719075629430,0.8669833,135.06,135.02,7.4062]
[1719075629641,0.8669833,135.06,135.03,0.34]
[1719075630044,7.3569833,135.06,135.03,30.34]
[1719075630232,0.8669833,135.06,135.03,30.0]
[1719075630437,7.3569833,135.06,135.03,30.0]
[1719075630738,0.8669833,135.06,135.03,30.0]
[1719075631052,0.8669833,135.06,135.04,10.9901843]
[1719075631239,0.8669833,135.06,135.05,10.9901843]
[1719075631547,0.8669833,135.06,135.05,30.0]
[1719075632128,7.3569833,135.06,135.05,30.0]
[1719075632638,7.3569833,135.06,135.01,47.17089837]
[1719075632837,7.3569833,135.06,135.02,0.34]
[1719075633236,0.8669833,135.06,135.02,0.34]
[1719075633439,0.8669833,135.06,135.02,100.34]
[1719075633652,0.8669833,135.06,135.03,30.0]
[1719075635539,7.3569833,135.06,135.03,30.0]
[1719075635850,0.8669833,135.06,135.03,30.0]
[1719075637955,0.8669833,135.06,135.03,43.8957]
[1719075638163,0.8669833,135.06,135.04,0.34]
[1719075638464,0.8669833,135.06,135.04,30.34]
[1719075638669,0.8669833,135.06,135.04,144.2351]
[1719075639045,0.8669833,135.06,135.04,44.2351]
[1719075639355,0.8669833,135.06,135.05,7.4046]
[1719075639543,0.8669833,135.06,135.05,37.7446]
[1719075639738,0.8669833,135.06,135.05,30.34]
[1719075639953,0.8669833,135.06,135.05,44.2346]
[1719075641043,254.0,135.13,135.08,100.0]
[1719075641349,7.3984,135.17,135.12,10.96675185]
[1719075641541,7.3987,135.16,135.13,10.96675185]
[1719075641742,13.8887,135.16,135.13,10.96675185]
[1719075641952,6.49,135.16,135.13,10.96675185]
[1719075642152,0.8669833,135.19,135.15,10.96019617]
[1719075642153,6.49,135.18,135.15,10.96019617]
[1719075642446,0.8669833,135.19,135.15,10.96019617]
[1719075642763,0.8669833,135.19,135.17,10.96019617]
[1719075643061,14.7539833,135.19,135.17,10.96019617]
[1719075643243,6.49,135.18,135.17,10.96019617]
[1719075644058,0.8669833,135.19,135.17,10.95682936]
[1719075644362,6.49,135.18,135.17,10.95682936]
[1719075644545,20.8669833,135.19,135.16,10.95682936]
[1719075644746,7.3991,135.15,135.14,10.95682936]
[1719075644958,33.8891,135.15,135.12,10.95682936]
[1719075645399,7.3997,135.14,135.07,100.0]
[1719075645874,7.3997,135.14,135.08,30.0]
[1719075647145,7.3997,135.14,135.09,0.17]
[1719075647342,7.3997,135.14,135.09,30.17]
[1719075649862,16.2518,135.13,135.09,30.0]
[1719075650050,7.4013,135.11,135.09,30.0]
[1719075650768,7.4019,135.1,135.09,30.0]
[1719075650970,27.4019,135.1,135.09,30.0]
[1719075651375,20.0,135.1,135.09,30.0]
[1719075651577,20.0,135.1,135.03,13.4593]
[1719075651763,20.0,135.1,135.05,30.0]
[1719075652885,27.4021,135.1,135.05,30.0]
[1719075653273,27.4025,135.09,135.05,30.0]
[1719075653671,20.0,135.09,135.05,30.0]
[1719075653851,27.4026,135.09,135.05,30.0]
[1719075654051,20.0,135.09,135.05,30.0]
[1719075654247,27.4024,135.09,135.05,30.0]
[1719075654876,20.0,135.09,135.05,30.0]
[1719075655173,7.434,135.11,135.06,0.17]
[1719075655374,20.0,135.1,135.06,30.34]
[1719075656261,7.402,135.1,135.06,30.0]
[1719075656462,27.4026,135.09,135.06,30.0]
[1719075656871,7.403,135.08,135.06,30.0]
[1719075657071,7.4035,135.07,135.06,30.0]
[1719075657270,27.4035,135.07,135.06,30.0]
[1719075658161,27.4035,135.07,135.01,100.0]
[1719075658361,27.4035,135.07,135.03,30.0]
[1719075659356,7.434,135.06,135.03,30.0]
[1719075660469,14.8381,135.06,135.03,30.0]
[1719075660776,20.0,135.05,135.03,30.0]
[1719075664359,7.434,135.06,135.03,30.0]
[1719075664360,7.4027,135.09,135.04,0.17]
[1719075664565,14.8367,135.09,135.04,0.34]
[1719075664773,20.0,135.08,135.04,0.34]
[1719075665882,20.0,135.08,135.04,30.34]
[1719075667679,7.403,135.08,135.04,30.34]
[1719075669678,7.403,135.08,135.04,30.17]
[1719075670267,7.434,135.07,135.04,30.0]
[1719075670471,27.4044,135.06,135.04,30.0]
[1719075670793,7.4046,135.05,135.04,30.0]
[1719075671079,20.0,135.06,135.04,30.0]
[1719075671080,27.4042,135.06,135.04,30.0]
[1719075671663,27.4042,135.06,134.99,128.8913]
[1719075671865,27.4042,135.06,135.0,30.0]
[1719075672296,27.4042,135.06,135.01,0.17]
[1719075672866,27.4042,135.06,135.01,30.0]
[1719075672867,20.0,135.06,135.01,30.0]
[1719075673065,14.8395,135.04,135.01,30.0]
[1719075673280,7.434,135.04,135.01,30.0]
[1719075676781,7.434,135.05,135.01,30.0]
[1719075677480,6.46,135.04,135.01,30.0]
[1719075677902,6.46,135.03,135.01,30.0]
[1719075678307,6.46,135.02,135.01,30.0]
[1719075679203,6.46,135.1,135.02,6.4793]
[1719075679406,6.46,135.1,135.03,7.5753]
[1719075679707,6.46,135.1,135.04,7.5752]
[1719075680003,6.46,135.1,135.05,0.17]
[1719075680509,7.434,135.08,135.05,30.17]
[1719075680717,6.46,135.09,135.05,30.17]
[1719075681085,7.4014,135.11,135.05,30.17]
[1719075681086,6.46,135.1,135.05,30.17]
[1719075681482,16.6053,135.13,135.05,30.17]
[1719075681483,7.434,135.12,135.05,30.17]
[1719075682325,16.6053,135.13,135.05,30.17]
[1719075682613,27.434,135.12,135.05,30.17]
[1719075682830,34.8348,135.12,135.05,37.5745]
[1719075683315,34.8348,135.12,135.05,30.17]
[1719075684498,27.434,135.12,135.05,30.0]
[1719075684691,7.4024,135.09,135.05,30.0]
[1719075685080,7.4021,135.1,135.05,30.0]
[1719075687214,7.4014,135.11,135.05,30.0]
[1719075687387,20.0,135.1,135.05,30.0]
[1719075688402,20.0,135.1,135.06,0.17]
[1719075688715,20.0,135.11,135.06,37.7439]
[1719075688893,24.0059,135.13,135.06,37.7439]
[1719075689084,20.0,135.12,135.06,37.7439]
[1719075689931,24.0059,135.13,135.06,37.7439]
[1719075690216,20.0,135.12,135.06,37.7439]
[1719075690456,20.0,135.12,135.06,30.34]
[1719075692135,27.4009,135.12,135.06,30.34]
[1719075692431,7.4019,135.1,135.06,30.0]
[1719075693203,7.4015,135.11,135.06,30.0]
[1719075696916,14.8355,135.11,135.06,30.0]
[1719075699004,7.4015,135.11,135.06,30.0]
[1719075700326,14.8369,135.09,135.06,30.0]
[1719075701533,6.46,135.07,135.06,30.0]
[1719075701738,13.894,135.08,135.06,30.0]
[1719075701944,13.894,135.08,135.03,30.0]
[1719075709446,7.434,135.09,135.03,30.0]
[1719075709618,13.894,135.08,135.03,37.4055]
[1719075710619,13.894,135.08,135.03,30.0]
[1719075713010,5.78511629,135.12,135.03,130.0]
[1719075713245,6.46,135.11,135.06,13.8637]
[1719075713612,6.46,135.12,135.06,6.46]
[1719075714121,13.894,135.12,135.06,36.46]
[1719075714522,6.46,135.11,135.06,36.46]
[1719075716762,23.0653,135.13,135.08,13.8626]
[1719075716960,23.0653,135.13,135.07,7.7433]
[1719075716961,6.46,135.13,135.07,7.7433]
[1719075717136,6.46,135.13,135.08,30.0]
[1719075717337,6.46,135.13,135.08,43.8628]
[1719075717529,6.46,135.13,135.08,36.46]
[1719075717730,13.894,135.13,135.08,30.0]
[1719075717958,13.8602,135.13,135.08,30.0]
[1719075718162,6.46,135.12,135.08,30.0]
[1719075721063,7.3999,135.14,135.08,30.0]
[1719075721264,6.46,135.12,135.08,30.0]
[1719075721880,13.894,135.13,135.08,30.0]
[1719075722843,21.2943,135.13,135.08,30.0]
[1719075723050,6.46,135.11,135.08,30.0]
[1719075724270,6.46,135.09,135.08,30.0]
[1719075725053,6.46,135.09,135.03,30.135]
[1719075725253,6.46,135.09,135.04,30.0]
[1719075725451,25.932,135.15,135.04,36.46]
[1719075725771,6.46,135.1,135.05,7.4042]
[1719075726268,7.4004,135.13,135.06,30.0]
[1719075726452,6.46,135.1,135.06,37.404]
[1719075726659,6.46,135.1,135.06,30.0]
[1719075726854,406.0942,135.18,135.06,36.46]
[1719075727179,6.46,135.12,135.07,0.17]
[1719075727344,6.46,135.12,135.07,30.17]
[1719075728267,13.8609,135.12,135.07,30.0]
[1719075728472,6.46,135.1,135.07,30.0]
[1719075728658,6.46,135.09,135.07,30.0]
[1719075729663,6.46,135.1,135.07,30.0]
[1719075730555,13.8615,135.11,135.07,30.0]
[1719075731052,6.46,135.1,135.07,30.0]
[1719075732675,7.4015,135.11,135.07,30.0]
[1719075732874,7.401,135.12,135.07,30.0]
[1719075733076,269.6966,135.16,135.09,7.4022]
[1719075733283,6.46,135.14,135.09,7.4022]
[1719075733579,6.46,135.14,135.09,37.4022]
[1719075733580,20.0,135.13,135.09,37.4022]
[1719075734146,6.46,135.14,135.09,30.0]
[1719075734758,23.0952,135.16,135.09,30.0]
[1719075734975,6.46,135.14,135.09,30.0]
[1719075735357,34.8332,135.15,135.09,30.0]
[1719075735661,6.46,135.14,135.09,30.0]
[1719075736986,27.434,135.15,135.09,30.0]
[1719075737153,6.46,135.14,135.09,30.0]
[1719075737560,34.8332,135.15,135.09,30.0]
[1719075737770,6.46,135.14,135.09,30.0]
[1719075738980,34.8332,135.15,135.09,30.0]
[1719075739185,6.46,135.14,135.09,30.0]
[1719075740475,6.46,135.13,135.09,30.0]
[1719075741362,13.8603,135.13,135.09,30.0]
[1719075741580,6.46,135.12,135.09,30.0]
[1719075742567,7.4003,135.13,135.09,30.0]
[1719075742897,6.46,135.11,135.09,30.0]
[1719075743193,6.46,135.1,135.04,36.8025]
[1719075743391,6.46,135.1,135.05,0.17]
[1719075743692,13.8628,135.09,135.04,22.9375]
[1719075743867,13.8628,135.09,135.03,23.0952]
[1719075743868,6.46,135.07,135.03,23.0952]
[1719075744198,6.46,135.07,135.06,30.0]
[1719075744572,13.894,135.08,135.06,30.0]
[1719075745659,13.894,135.08,135.03,29.5552]
[1719075745887,13.894,135.08,135.04,30.0]
[1719075747287,7.434,135.08,135.04,30.0]
[1719075747889,13.894,135.08,135.04,30.0]
[1719075749387,7.434,135.09,135.04,30.0]
[1719075749692,13.894,135.08,135.04,30.0]
[1719075749863,7.434,135.08,135.04,36.46]
[1719075750276,7.402,135.1,135.04,30.0]
[1719075750587,26.46,135.09,135.04,36.46]
[1719075751389,7.434,135.08,135.04,36.46]
[1719075751685,20.0,135.09,135.05,6.46]
[1719075751889,26.46,135.11,135.06,6.46]
[1719075752573,33.8614,135.11,135.04,30.17]
[1719075752887,33.8614,135.11,135.06,30.0]
[1719075753266,20.0,135.11,135.06,30.0]
[1719075753587,20.0,135.11,135.06,42.9731]
[1719075754470,26.46,135.11,135.06,42.9731]
[1719075754679,26.46,135.11,135.06,36.5131]
[1719075755197,33.8615,135.11,135.06,36.5131]
[1719075756399,26.46,135.11,135.06,36.5131]
[1719075756774,33.8615,135.11,135.06,36.5131]
[1719075757300,254.0,135.14,135.07,21.7528]
[1719075757595,26.46,135.13,135.07,51.7528]
[1719075758773,26.46,135.13,135.08,6.46]
[1719075759103,20.0,135.13,135.08,36.63]
[1719075759264,20.0,135.13,135.08,36.46]
[1719075759468,260.46,135.14,135.08,36.46]
[1719075759692,260.46,135.14,135.09,0.34]
[1719075759992,260.46,135.14,135.09,30.34]
[1719075760797,6.46,135.14,135.09,30.34]
[1719075761173,14.8333,135.15,135.09,30.0]
[1719075761174,7.4006,135.13,135.09,30.0]
[1719075761372,6.46,135.12,135.09,30.0]
[1719075761798,13.8606,135.13,135.09,30.0]
[1719075762003,6.46,135.12,135.09,30.0]
[1719075766589,6.46,135.11,135.09,30.0]
[1719075768103,18.4995,135.14,135.06,6.5131]
[1719075768104,6.46,135.1,135.06,6.5131]
[1719075768402,7.434,135.08,135.07,30.0]
[1719075769501,6.46,135.09,135.07,30.0]
[1719075770467,6.46,135.09,135.06,6.5131]
[1719075771295,6.46,135.1,135.06,6.5131]
[1719075771801,6.46,135.11,135.06,6.5131]
[1719075773019,6.46,135.1,135.06,6.5131]
[1719075773184,6.46,135.11,135.06,6.5131]
[1719075773781,6.46,135.11,135.06,13.917]
[1719075773986,6.46,135.11,135.06,6.5131]
[1719075774706,6.46,135.11,135.07,30.0]
[1719075775078,13.8614,135.11,135.07,30.0]
[1719075775296,6.46,135.11,135.07,30.0]
[1719075777402,6.46,135.13,135.07,36.46]
[1719075778700,6.46,135.13,135.08,15.6868]
[1719075778906,6.46,135.13,135.08,45.6868]
[1719075779207,6.46,135.13,135.08,45.3468]
[1719075780389,13.8602,135.13,135.08,45.3468]
[1719075780801,6.46,135.13,135.08,45.3468]
[1719075781100,7.3994,135.15,135.08,45.3468]
[1719075781284,6.46,135.13,135.08,51.8068]
[1719075782111,6.46,135.13,135.08,45.3468]
[1719075782408,6.46,135.12,135.08,45.3468]
[1719075782913,6.46,135.13,135.08,45.3468]
[1719075787308,6.46,135.12,135.08,45.3468]
[1719075789410,6.46,135.12,135.08,52.7498]
[1719075792215,6.46,135.12,135.08,45.3468]
[1719075793891,13.8609,135.12,135.08,30.0]
[1719075794105,6.46,135.09,135.02,6.4247]
[1719075794305,6.46,135.07,135.04,30.0]
[1719075795297,20.0,135.06,135.04,30.0]
[1719075796293,22.9201,135.11,135.04,30.0]
[1719075796501,13.894,135.08,135.04,30.0]
[1719075796703,20.0,135.07,135.04,30.0]
[1719075801315,13.894,135.08,135.04,30.0]
[1719075802425,21.2972,135.08,135.04,30.0]
[1719075802910,20.0,135.07,135.04,30.0]
[1719075803515,13.879,135.08,135.04,30.0]
[1719075804929,7.419,135.08,135.04,36.46]
[1719075805302,13.879,135.08,135.04,30.0]
[1719075805921,6.46,135.07,135.04,30.0]
[1719075806334,6.46,135.06,135.04,30.0]
[1719075806547,6.46,135.07,135.04,30.0]
[1719075808841,7.419,135.08,135.04,30.0]
[1719075809014,6.46,135.05,135.04,30.0]
[1719075809808,13.8646,135.05,135.04,30.0]
[1719075810013,33.8646,135.05,135.04,30.0]
[1719075810233,26.46,135.05,135.04,30.0]
[1719075810932,33.8646,135.05,135.04,30.0]
[1719075811536,7.4053,135.04,134.98,22.8216]
[1719075811738,6.46,135.03,135.0,30.0]
[1719075815251,6.46,135.04,135.0,30.0]
[1719075816861,6.46,135.02,135.0,30.0]
[1719075817059,7.419,135.01,135.0,30.0]
[1719075817440,13.879,135.01,135.0,30.0]
[1719075818940,13.879,135.01,134.98,22.8216]
[1719075820051,7.419,135.01,134.98,22.8216]
[1719075820253,13.879,135.01,134.98,22.8216]
[1719075820458,13.879,135.01,134.99,30.0]
[1719075821861,13.879,135.01,134.98,6.4247]
[1719075823567,13.879,135.01,134.96,6.46]
[1719075823751,13.879,135.01,134.97,30.0]
[1719075828740,7.4075,135.0,134.97,30.0]
[1719075828940,13.8682,134.99,134.97,30.0]
[1719075829458,6.46,134.99,134.97,30.0]
[1719075829653,6.46,134.98,134.97,30.0]
[1719075830466,6.46,134.99,134.97,30.0]
[1719075831451,6.46,134.99,134.93,13.8712]
[1719075831660,6.46,134.98,134.94,30.34]
[1719075832159,6.46,134.99,134.94,30.34]
[1719075834552,6.46,135.0,134.94,136.8]
[1719075834754,20.0,134.99,134.94,136.8]
[1719075835960,20.0,134.99,134.94,144.2103]
[1719075837150,20.0,134.99,134.95,13.87]
[1719075837465,20.0,135.0,134.96,36.8]
[1719075838458,7.4065,135.02,134.96,136.8]
[1719075838767,27.419,135.01,134.96,136.8]
[1719075840594,33.879,135.01,134.96,136.8]
[1719075840965,41.2861,135.01,134.96,36.8]
[1719075841258,41.286,135.01,134.96,30.34]
[1719075842872,6.46,135.0,134.96,30.34]
[1719075843375,13.8674,135.0,134.96,30.0]
[1719075843754,26.46,134.99,134.96,30.0]
[1719075844346,6.46,134.98,134.96,30.0]
[1719075845962,6.46,134.98,134.94,30.0]
[1719075846172,26.46,134.99,134.94,30.0]
[1719075847861,26.46,134.99,134.94,36.46]
[1719075848054,33.8679,134.99,134.94,36.46]
[1719075848368,33.8679,134.99,134.94,30.0]
[1719075848869,6.46,134.98,134.94,30.0]
[1719075850167,6.46,134.97,134.94,30.0]
[1719075852361,7.419,134.95,134.94,30.0]
[1719075852859,13.879,134.95,134.94,30.0]
[1719075853064,7.419,134.95,134.94,30.0]
[1719075854982,7.419,134.95,134.93,30.0]
[1719075855486,13.879,134.95,134.93,30.0]
[1719075855984,14.8291,134.95,134.93,30.0]
[1719075856197,26.46,134.94,134.93,30.0]
[1719075856362,20.0,134.94,134.93,30.0]
[1719075858068,20.0,134.94,134.9,6.46]
[1719075858280,20.0,134.94,134.91,30.17]
[1719075859865,7.419,134.95,134.91,36.63]
[1719075860291,13.8692,134.97,134.92,6.46]
[1719075860486,20.0,134.96,134.92,6.46]
[1719075860878,20.0,134.96,134.93,6.8]
[1719075861080,20.0,134.97,134.93,6.8]
[1719075861286,27.4092,134.97,134.93,6.8]
[1719075861466,27.4092,134.97,134.93,30.34]
[1719075861889,33.8692,134.97,134.93,30.34]
[1719075862081,33.8692,134.97,134.93,30.17]
[1719075862893,7.4098,134.96,134.93,30.17]
[1719075863390,33.8692,134.97,134.93,30.17]
[1719075865902,27.4092,134.97,134.93,30.17]
[1719075866078,20.0,134.97,134.93,30.17]
[1719075866707,20.0,134.97,134.93,36.63]
[1719075868381,27.4091,134.97,134.93,36.63]
[1719075868695,27.4091,134.97,134.93,30.17]
[1719075870983,33.8691,134.97,134.93,30.17]
[1719075873587,26.46,134.97,134.93,30.17]
[1719075875496,20.0,134.97,134.93,136.7778]
[1719075875700,20.0,134.98,134.94,0.17]
[1719075875885,20.0,134.98,134.94,30.17]
[1719075876084,27.4085,134.98,134.94,30.17]
[1719075878906,20.0,134.98,134.94,30.17]
[1719075879792,26.46,134.98,134.94,30.17]
[1719075881409,33.8685,134.98,134.94,30.17]
[1719075888711,27.4085,134.98,134.94,30.17]
[1719075892536,20.0,134.98,134.94,30.17]
[1719075892738,13.8658,135.03,134.97,6.46]
[1719075892919,20.0,135.02,134.97,6.46]
[1719075893711,7.419,135.01,134.97,6.46]
[1719075894227,7.419,135.01,134.97,36.46]
[1719075896727,7.4054,135.04,134.98,106.8]
[1719075896928,26.46,135.03,134.98,136.8]
[1719075898628,26.46,135.03,134.98,143.0964]
[1719075903541,26.46,135.03,134.98,136.6364]
[1719075903741,21.2857,135.02,134.98,36.2964]
[1719075903927,13.879,135.01,134.98,36.2964]
[1719075904136,7.419,135.01,134.98,36.2964]
[1719075904323,27.4058,135.03,134.98,36.2964]
[1719075904525,13.8663,135.02,134.98,36.2964]
[1719075904826,27.4059,135.03,134.98,36.2964]
[1719075905046,13.879,135.02,134.98,36.2964]
[1719075907358,21.2856,135.02,134.98,36.2964]
[1719075907648,13.879,135.01,134.98,36.2964]
[1719075907850,6.46,135.0,134.98,30.0]
[1719075909043,6.46,134.99,134.98,30.0]
[1719075909246,26.46,134.99,134.96,30.0]
[1719075909448,6.46,134.97,134.96,30.0]
[1719075911063,6.46,134.97,134.93,107.4112]
[1719075911229,6.46,134.97,134.94,30.0]
[1719075911644,27.4059,135.03,134.95,0.17]
[1719075911839,13.879,135.01,134.96,6.46]
[1719075912240,26.46,135.0,134.96,30.0]
[1719075912445,6.46,134.97,134.96,30.0]
[1719075912851,6.46,134.97,134.93,100.0]
[1719075913051,6.46,134.96,134.93,100.0]
[1719075913235,6.46,134.97,134.94,30.0]
[1719075916247,20.0,135.0,134.94,43.8706]
[1719075916557,26.46,135.0,134.95,14.2101]
[1719075916766,26.46,135.0,134.95,44.2101]
[1719075918147,20.0,135.0,134.95,44.2101]
[1719075918349,26.46,135.0,134.95,44.2101]
[1719075918657,20.0,135.0,134.96,6.46]
[1719075918951,7.4063,135.02,134.96,6.46]
[1719075918952,7.4058,135.03,134.97,0.17]
[1719075919157,13.879,135.01,134.97,0.17]
[1719075920070,6.46,135.0,134.97,30.0]
[1719075920239,26.46,135.0,134.97,30.0]
[1719075920751,20.0,135.0,134.97,30.0]
[1719075921465,27.4074,135.0,134.97,30.0]
[1719075922064,13.8685,134.98,134.97,30.0]
[1719075922265,13.8685,134.98,134.92,100.0]
[1719075922565,13.879,134.95,134.93,30.0]
[1719075922777,6.46,134.94,134.93,30.0]
[1719075926068,6.46,134.94,134.9,30.0]
[1719075927156,7.4097,134.96,134.9,30.0]
[1719075927351,6.46,134.94,134.9,30.0]
[1719075929346,3.3929,134.93,134.9,30.0]
[1719075930380,6.46,134.92,134.88,22.5396]
[1719075930695,6.46,134.92,134.89,30.0]
[1719075931674,6.46,134.9,134.89,30.0]
[1719075931844,6.46,134.91,134.89,30.0]
[1719075932047,6.46,134.9,134.89,30.0]
[1719075932466,26.46,134.9,134.89,30.0]
[1719075932680,50.3913,134.9,134.89,30.0]
[1719075932858,50.3913,134.9,134.83,7.4167]
[1719075933056,6.46,134.87,134.83,7.4167]
[1719075933682,20.0,134.86,134.84,30.0]
[1719075935267,20.0,134.86,134.84,37.416]
[1719075936070,6.46,134.85,134.84,30.0]
[1719075936450,26.46,134.85,134.84,30.0]
[1719075937061,26.46,134.85,134.8,13.878]
[1719075937358,20.0,134.84,134.81,30.0]
[1719075937870,6.46,134.83,134.81,30.0]
[1719075938069,20.0,134.82,134.81,30.0]
[1719075940163,20.0,134.82,134.8,7.4182]
[1719075940375,6.46,134.85,134.8,13.8782]
[1719075940562,26.46,134.86,134.8,13.8782]
[1719075941180,6.46,134.85,134.79,37.5889]
[1719075941352,20.0,134.84,134.8,6.46]
[1719075941863,26.46,134.85,134.8,6.46]
[1719075942064,26.46,134.85,134.81,30.0]
[1719075944976,25.96,134.85,134.81,23.0]
[1719075945173,33.3757,134.85,134.81,23.0]
[1719075946074,26.46,134.85,134.81,23.0]
[1719075947173,20.0,134.85,134.81,23.0]
[1719075947567,20.0,134.87,134.82,6.8]
[1719075947779,20.0,134.87,134.83,6.46]
[1719075948681,20.0,134.87,134.83,30.0]
[1719075950756,20.0,134.87,134.83,36.46]
[1719075951055,20.0,134.87,134.84,6.46]
[1719075951261,20.0,134.9,134.84,36.46]
[1719075951650,26.46,134.9,134.85,6.46]
[1719075951855,20.0,134.9,134.84,137.586]
[1719075952057,20.0,134.9,134.86,6.46]
[1719075952452,20.0,134.9,134.87,100.0]
[1719075952667,254.0,134.97,134.91,7.4123]
[1719075952862,33.8697,134.96,134.9,6.46]
[1719075953199,7.4101,134.95,134.9,6.46]
[1719075953482,13.8701,134.95,134.89,6.46]
[1719075953689,13.8697,134.96,134.9,6.46]
[1719075953882,13.8697,134.96,134.91,0.17]
[1719075954353,23.5752,134.98,134.92,6.46]
[1719075954557,6.46,134.97,134.92,6.63]
[1719075954972,13.8691,134.97,134.92,6.63]
[1719075955277,20.0,134.96,134.92,6.63]
[1719075955485,20.0,134.97,134.92,6.63]
[1719075956176,20.0,134.97,134.92,36.63]
[1719075957681,20.0,134.97,134.92,36.8]
[1719075957878,26.46,134.97,134.92,36.8]
[1719075958065,33.8691,134.97,134.92,36.63]
[1719075958265,6.46,134.96,134.88,7.4136]
[1719075958478,20.0,134.95,134.9,36.46]
[1719075958982,20.0,134.95,134.9,30.0]
[1719075959161,33.8702,134.95,134.9,36.46]
[1719075959865,33.8702,134.95,134.9,30.0]
[1719075960708,9.8529,134.93,134.9,30.0]
[1719075961090,3.3929,134.93,134.91,6.46]
[1719075961562,3.3929,134.93,134.92,6.46]
[1719075961881,3.3929,134.93,134.92,6.63]
[1719075964575,3.3929,134.93,134.92,36.63]
[1719075965990,3.3929,134.93,134.92,30.17]
[1719075968993,3.3929,134.93,134.92,30.0]
[1719075969194,3.3929,134.93,134.9,6.46]
[1719075969386,3.3929,134.93,134.91,30.0]
[1719075972073,9.8529,134.93,134.91,30.0]
[1719075972292,20.0,134.92,134.87,13.8744]
[1719075972491,20.0,134.92,134.89,30.0]
[1719075972896,6.46,134.92,134.89,30.0]
[1719075973196,20.0,134.91,134.89,30.0]
[1719075973609,26.46,134.91,134.89,30.0]
[1719075973785,20.0,134.91,134.89,30.0]